fUST/lending_fUST_20260114
["ID","MTS","AMOUNT","RATE_DAILY","PERIOD"]
[401799628,1768378255720,-5000.0,0.00027768,2]
[401799630,1768378255730,-2916.3971575,0.00027783,2]
[401799631,1768378255740,-2829.23463482,0.00027808,13]
[401799633,1768378255749,-160.0,0.00027916,5]
[401799636,1768378255759,-1000.0,0.00027945,5]
[401799638,1768378255768,-750.0,0.00027945,5]
[401799640,1768378255779,-250.0,0.00027945,5]
[401799642,1768378255788,-250.0,0.00027945,5]
[401799644,1768378255798,-800.0,0.00027997,2]
[401799646,1768378255807,-1019.0,0.00028,2]
[401799648,1768378255816,-417.0,0.00028029,2]
[401799650,1768378255826,-417.0,0.00028029,2]
[401799652,1768378255835,-715.0,0.00028029,2]
[401799654,1768378255844,-178.0,0.00028029,2]
[401799656,1768378255855,-1758.13331495,0.00028032,2]
[401799658,1768378255864,-1665.51,0.000281,2]
[401799660,1768378255874,-167.76,0.000281,7]
[401799662,1768378255883,-1060.1,0.00028105,5]
[401799663,1768378255892,-2916.3971575,0.00028111,2]
[401799664,1768378255901,-2000.0,0.00028164,7]
[401799665,1768378255910,-2916.3971575,0.00028243,2]
[401799666,1768378255919,-2113.56,0.000284,7]
[401799667,1768378255928,-160.0,0.00028425,6]
[401799668,1768378255937,-850.0,0.00028493,5]
[401799670,1768378255946,-1349.80836073,0.00028493,5]
[401799672,1768378255957,-350.0,0.00028493,5]
[401799674,1768378255966,-350.0,0.00028493,5]
[401799676,1768378255975,-2916.3971575,0.00028599,2]
[401799678,1768378255984,-1665.51,0.000286,2]
[401799680,1768378255997,-800.0,0.00028648,2]
[401799682,1768378256007,-800.0,0.0002869,2]
[401799684,1768378256017,-5000.0,0.00028768,2]
[401799686,1768378256031,-2916.3971575,0.00028865,2]
[401799688,1768378256041,-160.0,0.00028933,7]
[401799690,1768378256050,-1019.0,0.00029,2]
[401799692,1768378256060,-30131.09800633,0.0002902,2]
[401799694,1768378256069,-508.66826773,0.00029029,5]
[401799696,1768378256079,-950.0,0.00029041,5]
[401799698,1768378256089,-450.0,0.00029041,5]
[401799700,1768378256098,-450.0,0.00029041,5]
[401799702,1768378256107,-800.0,0.00029044,2]
[401799704,1768378256116,-1665.51,0.000291,2]
[401799706,1768378256126,-2916.3971575,0.00029117,2]
[401799708,1768378256137,-18780.42235644,0.0002919,2]
[401799710,1768378256146,-40340.44,0.000292,2]
[401799712,1768378256155,-4046.54,0.000292,14]
[401799714,1768378256165,-5000.0,0.00029287,30]
[401799716,1768378256174,-1000.0,0.00029291,30]
[401799718,1768378256185,-1000.0,0.00029291,30]
[401799720,1768378256194,-1000.0,0.00029291,30]
[401799722,1768378256204,-14150.53090947,0.00029294,2]
[401799724,1768378256214,-5000.0,0.00029314,6]
[401799726,1768378256224,-800.0,0.00029369,2]
[401799728,1768378256234,-159.0,0.0002937,34]
[401799730,1768378256243,-800.0,0.00029381,2]
[401799732,1768378256254,-2916.3971575,0.00029427,2]
[401799734,1768378256264,-160.0,0.00029442,8]
[401799736,1768378256273,-2000.0,0.00029479,7]
[401799738,1768378256283,-1060.1,0.00029563,7]
[401799740,1768378256292,-656.01795132,0.00029589,5]
[401799743,1768378256302,-550.0,0.00029589,5]
[401799745,1768378256312,-550.0,0.00029589,5]
[401799747,1768378256321,-253.24,0.000296,7]
[401799749,1768378256330,-267.88,0.000296,7]
[401799751,1768378256339,-1665.51,0.000296,2]
[401799753,1768378256349,-5000.0,0.00029768,2]
[401799755,1768378256359,-2916.3971575,0.00029769,2]
[401799757,1768378256369,-800.0,0.00029779,2]
[401799759,1768378256378,-557.18,0.000298,30]
[401799761,1768378256387,-2916.3971575,0.00029931,2]
[401799763,1768378256397,-160.0,0.00029951,9]
[401799765,1768378256406,-1019.0,0.0003,7]
[401799767,1768378256415,-1041.66666667,0.0003,30]
[401799769,1768378256424,-1878.92109995,0.00030032,2]
[401799778,1768378256506,-1291.67458866,0.00030084,7]
[401799780,1768378256516,-192.66,0.00030087,2]
[401799782,1768378256525,-192.66,0.00030098,2]
[401799784,1768378256535,-192.66,0.00030102,2]
[401799786,1768378256544,-5000.0,0.00030135,30]
[401799788,1768378256553,-5000.0,0.00030135,21]
[401799790,1768378256563,-601.21589033,0.00030136,2]
[401799792,1768378256572,-500.0,0.00030136,2]
[401799794,1768378256581,-500.0,0.00030136,2]
[401799796,1768378256591,-500.0,0.00030136,2]
[401799798,1768378256599,-500.0,0.00030136,2]
[401799800,1768378256608,-500.0,0.00030136,2]
[401799802,1768378256619,-500.0,0.00030136,2]
[401799804,1768378256630,-500.0,0.00030136,2]
[401799806,1768378256639,-455.4900817,0.00030136,2]
[401799808,1768378256649,-837.36,0.00030136,2]
[401799810,1768378256659,-837.36,0.00030136,2]
[401799812,1768378256668,-837.36,0.00030136,2]
[401799814,1768378256677,-837.36,0.00030136,2]
[401799816,1768378256687,-1000.0,0.00030136,2]
[401799818,1768378256696,-1000.0,0.00030136,2]
[401799820,1768378256705,-1000.0,0.00030136,2]
[401799822,1768378256714,-1000.0,0.00030136,2]
[401799824,1768378256723,-1000.0,0.00030136,2]
[401799826,1768378256732,-579.56900066,0.00030136,2]
[401799828,1768378256741,-570.63788098,0.00030136,30]
[401799830,1768378256750,-500.0,0.00030136,8]
[401799832,1768378256759,-450.60081956,0.00030136,8]
[401799834,1768378256769,-224.80837806,0.00030136,7]
[401799836,1768378256778,-1025.18,0.00030136,21]
[401799838,1768378256787,-1025.18,0.00030136,21]
[401799840,1768378256796,-1025.18,0.00030136,21]
[401799842,1768378256805,-1025.18,0.00030136,21]
[401799844,1768378256815,-500.0,0.00030136,7]
[401799846,1768378256824,-616.46894229,0.00030136,7]
[401799848,1768378256833,-504.47042686,0.00030136,60]
[401799850,1768378256842,-1000.0,0.00030136,2]
[401799852,1768378256851,-1000.0,0.00030136,2]
[401799854,1768378256860,-1000.0,0.00030136,2]
[401799856,1768378256870,-1000.0,0.00030136,2]
[401799858,1768378256879,-15704.34,0.00030136,3]
[401799860,1768378256888,-15704.34,0.00030136,3]
[401799862,1768378256897,-15704.34,0.00030136,3]
[401799864,1768378256906,-15704.34,0.00030136,3]
[401799866,1768378256915,-500.0,0.00030136,2]
[401799869,1768378256925,-500.0,0.00030136,2]
[401799871,1768378256934,-468.00282616,0.00030136,2]
[401799872,1768378256943,-5000.0,0.00030136,10]
[401799874,1768378256952,-500.0,0.00030136,2]
[401799876,1768378256961,-500.0,0.00030136,2]
[401799878,1768378256971,-500.0,0.00030136,2]
[401799881,1768378256980,-500.0,0.00030136,2]
[401799883,1768378256989,-500.0,0.00030136,3]
[401799885,1768378256999,-500.0,0.00030136,3]
[401799887,1768378257011,-500.0,0.00030136,3]
[401799889,1768378257021,-286.91332979,0.00030136,3]
[401799891,1768378257030,-500.0,0.00030136,2]
[401799893,1768378257040,-500.0,0.00030136,2]
[401799895,1768378257051,-500.0,0.00030136,2]
[401799897,1768378257060,-500.0,0.00030136,2]
[401799899,1768378257072,-650.0,0.00030137,5]
[401799900,1768378257082,-650.0,0.00030137,5]
[401799902,1768378257091,-643.17927596,0.00030137,120]
[401799904,1768378257100,-5000.0,0.00030199,4]
[401799906,1768378257109,-1800.38,0.000302,4]
[401799908,1768378257118,-2916.3971575,0.00030366,2]
[401799910,1768378257127,-2113.56,0.000304,7]
[401799912,1768378257136,-2916.3971575,0.00030427,2]
[401799914,1768378257145,-1724.0,0.00030434,30]
[401799916,1768378257154,-468.0,0.00030434,30]
[401799918,1768378257164,-473.0,0.00030434,30]
[401799921,1768378257174,-160.0,0.00030459,10]
[401799923,1768378257184,-197.31148836,0.00030474,5]
[401799924,1768378257193,-155.82028036,0.00030553,10]
[401799927,1768378257203,-753.68865104,0.00030685,5]
[401799929,1768378257213,-750.0,0.00030685,5]
[401799931,1768378257222,-5000.0,0.00030768,2]
[401799933,1768378257231,-2000.0,0.00030795,7]
[401799935,1768378257240,-2916.3971575,0.00030797,2]
[401799937,1768378257250,-5000.0,0.00030799,19]
[401799939,1768378257259,-5000.0,0.00030799,11]
[401799941,1768378257268,-151.0,0.000308,20]
[401799943,1768378257278,-151.0,0.000308,13]
[401799945,1768378257288,-151.0,0.000308,14]
[401799947,1768378257298,-500.0,0.00030864,14]
[401799949,1768378257307,-397.2,0.00030958,30]
[401799951,1768378257317,-160.0,0.00030968,11]
[401799953,1768378257325,-264.8342905,0.00031,120]
[401799955,1768378257335,-205.49740752,0.00031,120]
[401799957,1768378257344,-287.40793029,0.00031,120]
[401799959,1768378257353,-258.99712913,0.00031,120]
[401799961,1768378257362,-188.12654303,0.00031,120]
[401799963,1768378257372,-225.90949192,0.00031,120]
[401799965,1768378257381,-189.61393414,0.00031,120]
[401799967,1768378257390,-1041.66666667,0.00031,3]
[401799969,1768378257400,-1019.0,0.00031,7]
[401799971,1768378257410,-1041.66666667,0.00031,10]
[401799973,1768378257419,-1060.1,0.00031022,7]
[401799975,1768378257428,-417.0,0.00031029,2]
[401799977,1768378257437,-417.0,0.00031029,2]
[401799979,1768378257446,-715.0,0.00031029,2]
[401799981,1768378257455,-178.0,0.00031029,2]
[401799983,1768378257464,-800.0,0.0003111,2]
[401799985,1768378257474,-2916.3971575,0.00031151,2]
[401799987,1768378257483,-850.0,0.00031233,5]
[401799989,1768378257492,-2916.3971575,0.00031361,2]
[401799991,1768378257502,-800.0,0.00031388,2]
[401799993,1768378257512,-200.0,0.000314,120]
[401799995,1768378257521,-40340.44,0.000314,2]
[401799997,1768378257530,-4046.54,0.000314,14]
[401799999,1768378257539,-253.24,0.000314,7]
[401800001,1768378257548,-267.88,0.000314,7]
[401800003,1768378257558,-631752.35,0.00031468,5]
[401800005,1768378257567,-160.0,0.00031477,12]
[401800007,1768378257576,-5000.0,0.00031478,30]
[401800009,1768378257586,-189.73403595,0.00031497,10]
[401800011,1768378257595,-157.32070626,0.00031497,10]
[401800013,1768378257606,-500.0,0.00031499,120]
[401800015,1768378257619,-837.36,0.00031499,2]
[401800017,1768378257628,-1000.0,0.00031499,2]
[401800019,1768378257638,-500.0,0.00031499,2]
[401800021,1768378257647,-800.23,0.00031499,2]
[401800023,1768378257656,-1025.18,0.00031499,21]
[401800025,1768378257665,-500.0,0.00031499,2]
[401800027,1768378257675,-2854.31,0.00031499,2]
[401800029,1768378257685,-1000.0,0.00031499,2]
[401800031,1768378257694,-15704.34,0.00031499,3]
[401800033,1768378257703,-500.0,0.00031499,2]
[401800035,1768378257712,-500.0,0.00031499,2]
[401800037,1768378257722,-500.0,0.00031499,2]
[401800039,1768378257732,-589.28,0.00031499,120]
[401800041,1768378257741,-497.78018917,0.00031499,120]
[401800043,1768378257751,-397.2,0.00031506,31]
[401800045,1768378257760,-6296.92368229,0.00031506,2]
[401800047,1768378257770,-5000.0,0.00031509,29]
[401800057,1768378257849,-5000.0,0.00031509,30]
[401800058,1768378257859,-171.0,0.00031562,47]
[401800059,1768378257868,-2916.3971575,0.00031596,2]
[401800060,1768378257877,-500.0,0.00031686,14]
[401800061,1768378257886,-14150.53090947,0.00031728,2]
[401800062,1768378257895,-5000.0,0.00031768,2]
[401800063,1768378257903,-195.235333,0.00031781,5]
[401800064,1768378257913,-5161.5316563,0.00031833,7]
[401800065,1768378257922,-2916.3971575,0.00031843,2]
[401800066,1768378257931,-30234.87467427,0.0003187,2]
[401800067,1768378257940,-5000.0,0.00031899,3]
[401800068,1768378257949,-264.8342905,0.000319,120]
[401800069,1768378257958,-189.61393414,0.000319,120]
[401800070,1768378257967,-2113.56,0.000319,7]
[401800071,1768378257977,-1041.66666667,0.000319,3]
[401800072,1768378257986,-160.0,0.00031985,13]
[401800073,1768378258000,-5000.0,0.00031999,8]
[401800074,1768378258009,-200.0,0.00032,120]
[401800075,1768378258018,-30552.268,0.00032,2]
[401800076,1768378258027,-1999.70888494,0.00032032,2]
[401800077,1768378258038,-5000.0,0.00032053,30]
[401800078,1768378258047,-397.2,0.00032054,32]
[401800079,1768378258056,-5000.0,0.00032099,5]
[401800080,1768378258066,-2000.0,0.0003211,7]
[401800081,1768378258075,-1000.98,0.0003214,5]
[401800082,1768378258084,-100105.93,0.0003214,5]
[401800083,1768378258093,-5000.0,0.00032194,30]
[401800084,1768378258102,-255.526264,0.00032234,31]
[401800085,1768378258111,-190.428635,0.00032234,31]
[401800086,1768378258120,-190.428635,0.00032234,31]
[401800087,1768378258129,-190.428635,0.00032234,31]
[401800088,1768378258138,-190.428635,0.00032234,31]
[401800089,1768378258147,-151.0,0.00032234,31]
[401800091,1768378258156,-151.0,0.00032234,31]
[401800093,1768378258165,-701.437556,0.00032234,31]
[401800095,1768378258175,-701.437556,0.00032234,31]
[401800097,1768378258185,-701.437556,0.00032234,31]
[401800098,1768378258195,-701.437556,0.00032234,31]
[401800100,1768378258204,-151.0,0.00032234,31]
[401800101,1768378258213,-151.0,0.00032234,31]
[401800102,1768378258222,-151.0,0.00032234,31]
[401800103,1768378258240,-151.0,0.00032234,31]
[401800104,1768378258249,-151.0,0.00032234,31]
[401800105,1768378258258,-151.0,0.00032234,31]
[401800106,1768378258268,-487.891031,0.00032234,31]
[401800107,1768378258278,-487.891031,0.00032234,31]
[401800108,1768378258288,-487.891031,0.00032234,31]
[401800109,1768378258297,-487.891031,0.00032234,31]
[401800110,1768378258307,-209.631005,0.00032234,31]
[401800111,1768378258317,-697.474609,0.00032234,3]
[401800112,1768378258326,-697.474609,0.00032234,3]
[401800113,1768378258336,-697.474609,0.00032234,3]
[401800114,1768378258346,-490.347103,0.00032234,31]
[401800115,1768378258356,-697.474609,0.00032234,3]
[401800116,1768378258366,-490.347103,0.00032234,31]
[401800117,1768378258376,-490.347103,0.00032234,31]
[401800118,1768378258386,-490.347103,0.00032234,31]
[401800119,1768378258397,-179.180636,0.00032234,31]
[401800120,1768378258407,-490.971226,0.00032234,31]
[401800121,1768378258417,-490.971226,0.00032234,31]
[401800122,1768378258428,-151.0,0.00032234,31]
[401800123,1768378258438,-490.971226,0.00032234,31]
[401800124,1768378258447,-490.971226,0.00032234,31]
[401800125,1768378258457,-505.094065,0.00032234,31]
[401800126,1768378258466,-505.094065,0.00032234,31]
[401800127,1768378258476,-505.094065,0.00032234,31]
[401800128,1768378258485,-505.094065,0.00032234,31]
[401800129,1768378258497,-2916.3971593,0.00032249,2]
[401800130,1768378258506,-4889.93224,0.00032309,2]
[401800131,1768378258516,-5000.0,0.00032327,7]
[401800132,1768378258527,-500.0,0.00032328,7]
[401800133,1768378258537,-500.0,0.00032328,7]
[401800134,1768378258548,-500.0,0.00032328,7]
[401800135,1768378258557,-500.0,0.00032328,7]
[401800136,1768378258567,-500.0,0.00032328,7]
[401800137,1768378258576,-500.0,0.00032328,7]
[401800138,1768378258585,-500.0,0.00032328,7]
[401800139,1768378258595,-500.0,0.00032328,7]
[401800140,1768378258604,-500.0,0.00032328,7]
[401800141,1768378258613,-493.83129116,0.00032328,7]
[401800142,1768378258623,-1221.17687819,0.00032328,7]
[401800143,1768378258632,-4879.82280524,0.00032328,7]
[401800144,1768378258643,-337.67701345,0.00032328,7]
[401800145,1768378258652,-1350.70805381,0.00032328,7]
[401800146,1768378258662,-3039.09312107,0.00032328,7]
[401800147,1768378258671,-5402.83221524,0.00032328,7]
[401800148,1768378258681,-8433.48341097,0.00032328,7]
[401800149,1768378258691,-5000.0,0.00032361,14]
[401800150,1768378258700,-18780.42235644,0.00032394,2]
[401800151,1768378258710,-490.347103,0.0003244,31]
[401800152,1768378258719,-490.347103,0.0003244,31]
[401800153,1768378258728,-490.347103,0.0003244,31]
[401800154,1768378258737,-490.347103,0.0003244,31]
[401800155,1768378258747,-490.971226,0.0003244,31]
[401800156,1768378258756,-490.971226,0.0003244,31]
[401800157,1768378258766,-151.0,0.0003244,31]
[401800158,1768378258776,-490.971226,0.0003244,31]
[401800159,1768378258786,-490.971226,0.0003244,31]
[401800160,1768378258795,-505.094065,0.0003244,31]
[401800161,1768378258805,-505.094065,0.0003244,31]
[401800162,1768378258814,-505.094065,0.0003244,31]
[401800163,1768378258823,-505.094065,0.0003244,31]
[401800164,1768378258833,-800.0,0.0003245,2]
[401800166,1768378258842,-151.0,0.00032479,31]
[401800168,1768378258851,-151.0,0.00032479,31]
[401800170,1768378258860,-151.0,0.00032479,31]
[401800172,1768378258869,-151.0,0.00032479,31]
[401800174,1768378258878,-151.0,0.00032479,31]
[401800176,1768378258887,-151.0,0.00032479,31]
[401800178,1768378258896,-160.471335,0.00032479,31]
[401800179,1768378258906,-151.0,0.00032479,31]
[401800180,1768378258915,-151.0,0.00032479,31]
[401800182,1768378258924,-461.991157,0.00032479,31]
[401800184,1768378258933,-461.991157,0.00032479,31]
[401800185,1768378258942,-5000.0,0.00032479,2]
[401800187,1768378258951,-1060.1,0.0003248,30]
[401800188,1768378258960,-2199723.27246683,0.00032495,30]
[401800192,1768378259171,-160.0,0.00032494,14]
[401800193,1768378259180,-225.45912281,0.00032494,5]
[401800194,1768378259189,-2297.615063,0.00032494,31]
[401800195,1768378259198,-2297.615063,0.00032494,31]
[401800196,1768378259207,-237.361203,0.00032494,31]
[401800197,1768378259216,-237.361203,0.00032494,31]
[401800198,1768378259235,-237.361203,0.00032494,31]
[401800199,1768378259244,-237.361203,0.00032494,31]
[401800200,1768378259253,-151.0,0.00032494,31]
[401800201,1768378259263,-151.0,0.00032494,31]
[401800202,1768378259272,-155.398666,0.00032494,31]
[401800203,1768378259281,-151.0,0.00032494,31]
[401800204,1768378259291,-151.0,0.00032494,31]
[401800205,1768378259301,-151.0,0.00032494,2]
[401800206,1768378259310,-151.0,0.00032494,31]
[401800207,1768378259319,-151.0,0.00032494,2]
[401800208,1768378259329,-879.438014,0.00032494,31]
[401800209,1768378259339,-879.438014,0.00032494,31]
[401800210,1768378259348,-879.438014,0.00032494,31]
[401800211,1768378259358,-879.438014,0.00032494,31]
[401800212,1768378259367,-406.316369,0.00032494,31]
[401800213,1768378259376,-406.316369,0.00032494,31]
[401800214,1768378259386,-406.316369,0.00032494,31]
[401800215,1768378259396,-406.316369,0.00032494,31]
[401800216,1768378259406,-839.619726,0.00032494,31]
[401800217,1768378259415,-839.619726,0.00032494,31]
[401800218,1768378259425,-839.619726,0.00032494,31]
[401800219,1768378259434,-839.619726,0.00032494,31]
[401800220,1768378259443,-151.0,0.00032494,31]
[401800221,1768378259453,-151.0,0.00032494,31]
[401800222,1768378259462,-151.0,0.00032494,31]
[401800223,1768378259472,-151.3487,0.00032494,31]
[401800224,1768378259482,-171.590908,0.00032494,31]
[401800225,1768378259491,-151.3487,0.00032494,31]
[401800226,1768378259501,-151.3487,0.00032494,31]
[401800227,1768378259510,-633.503416,0.00032494,28]
[401800228,1768378259520,-151.3487,0.00032494,31]
[401800229,1768378259529,-633.503416,0.00032494,28]
[401800230,1768378259538,-633.503416,0.00032494,28]
[401800231,1768378259548,-633.503416,0.00032494,28]
[401800232,1768378259558,-266438.69531698,0.00032495,30]
[401800233,1768378260341,-3e-08,0.00019119,2]
[401800234,1768378260354,-713.97283293,0.00019119,2]
[401800235,1768378260364,-740.38982778,0.00019667,2]
[401800236,1768378260374,-767.7842514,0.00020215,2]
[401800237,1768378260383,-151.0,0.00021918,2]
[401800238,1768378260393,-151.0,0.000249,7]
[401800239,1768378260402,-999.87078598,0.00032495,30]
[401800240,1768378262923,-2706.1896675,0.0001153,2]
[401800241,1768378262933,-796.19226871,0.00020763,2]
[401800242,1768378262943,-825.65138265,0.00021311,2]
[401800243,1768378262953,-1822.904848,0.00021918,2]
[401800244,1768378262968,-1822.904848,0.000249,7]
[401800245,1768378262990,-1246.416256,0.0003,9]
[401800246,1768378263011,-1000.0,0.000305,9]
[401800247,1768378263022,-1000.0,0.00031,9]
[401800248,1768378263032,-1000.0,0.000315,9]
[401800249,1768378263042,-1000.0,0.00032,9]
[401800250,1768378263052,-63381.76964522,0.00032495,30]
[401800251,1768378263142,-1822.904848,0.00021918,2]
[401800252,1768378263152,-1822.904848,0.000249,7]
[401800253,1768378263162,-23284.5002674,0.00032495,30]
[401800254,1768378305093,151.66,8.781e-05,2]
[401800255,1768378305520,170.61,9.095e-05,2]
[401800256,1768378324596,10000.01,9.965e-05,2]
[401800257,1768378324635,10000.01,9.965e-05,2]
[401800258,1768378324672,10000.01,9.965e-05,2]
[401800259,1768378324711,10000.01,9.965e-05,2]
[401800260,1768378324751,10000.01,9.965e-05,2]
[401800261,1768378324790,10000.01,9.965e-05,2]
[401800262,1768378324828,10000.01,9.965e-05,2]
[401800263,1768378348496,-791.93746355,9.965e-05,2]
[401800264,1768378369514,201.34,5.633e-05,2]
[401800265,1768378369922,402.68,5.901e-05,2]
[401800266,1768378370335,604.01,6.169e-05,2]
[401800267,1768378370755,805.35,6.438e-05,2]
[401800268,1768378371198,1006.69,6.706e-05,2]
[401800269,1768378371672,1208.03,6.974e-05,2]
[401800270,1768378372071,1409.37,7.242e-05,2]
[401800271,1768378372509,1610.7,7.511e-05,2]
[401800272,1768378373438,1812.04,7.779e-05,2]
[401800273,1768378373876,939.8,8.047e-05,2]
[401800274,1768378373912,1073.58,8.047e-05,2]
[401800275,1768378382418,300.0,9.964e-05,2]
[401800276,1768378396641,-1000.0,9.965e-05,2]
[401800277,1768378399466,-1000.0,9.965e-05,2]
[401800278,1768378399797,-1000.0,9.965e-05,2]
[401800279,1768378400117,-1000.0,9.965e-05,2]
[401800280,1768378400431,-1000.0,9.965e-05,2]
[401800281,1768378400731,-1000.0,9.965e-05,2]
[401800282,1768378401092,-1000.0,9.965e-05,2]
[401800283,1768378401373,-1000.0,9.965e-05,2]
[401800284,1768378401807,-1000.0,9.965e-05,2]
[401800285,1768378402053,-1000.0,9.965e-05,2]
[401800286,1768378402490,-1000.0,9.965e-05,2]
[401800287,1768378402823,-1000.0,9.965e-05,2]
[401800288,1768378403142,-1000.0,9.965e-05,2]
[401800289,1768378403473,-1000.0,9.965e-05,2]
[401800290,1768378403792,-1000.0,9.965e-05,2]
[401800291,1768378404142,-1000.0,9.965e-05,2]
[401800292,1768378404447,-1000.0,9.965e-05,2]
[401800293,1768378404775,-1000.0,9.965e-05,2]
[401800294,1768378405126,-1000.0,9.965e-05,2]
[401800295,1768378405451,-1000.0,9.965e-05,2]
[401800296,1768378405782,-1000.0,9.965e-05,2]
[401800297,1768378406122,-1000.0,9.965e-05,2]
[401800298,1768378406494,-1000.0,9.965e-05,2]
[401800299,1768378406868,-1000.0,9.965e-05,2]
[401800300,1768378407336,-1000.0,9.965e-05,2]
[401800301,1768378407666,-1000.0,9.965e-05,2]
[401800302,1768378408004,-1000.0,9.965e-05,2]
[401800303,1768378408522,-1000.0,9.965e-05,2]
[401800304,1768378408706,-1000.0,9.965e-05,2]
[401800305,1768378409066,-1000.0,9.965e-05,2]
[401800306,1768378409404,-1000.0,9.965e-05,2]
[401800307,1768378409733,-1000.0,9.965e-05,2]
[401800308,1768378410071,-1000.0,9.965e-05,2]
[401800309,1768378410413,-1000.0,9.965e-05,2]
[401800310,1768378410760,-1000.0,9.965e-05,2]
[401800311,1768378411136,-1000.0,9.965e-05,2]
[401800312,1768378411483,-1000.0,9.965e-05,2]
[401800313,1768378411932,-1000.0,9.965e-05,2]
[401800314,1768378412166,-1000.0,9.965e-05,2]
[401800315,1768378412531,-1000.0,9.965e-05,2]
[401800316,1768378412882,-1000.0,9.965e-05,2]
[401800317,1768378413240,-1000.0,9.965e-05,2]
[401800318,1768378413610,-1000.0,9.965e-05,2]
[401800319,1768378413971,-1000.0,9.965e-05,2]
[401800320,1768378414362,-1000.0,9.965e-05,2]
[401800321,1768378414694,-1000.0,9.965e-05,2]
[401800322,1768378415093,-1000.0,9.965e-05,2]
[401800323,1768378415425,-1000.0,9.965e-05,2]
[401800324,1768378415784,-1000.0,9.965e-05,2]
[401800325,1768378416177,-1000.0,9.965e-05,2]
[401800326,1768378416492,-1000.0,9.965e-05,2]
[401800327,1768378416866,-1000.0,9.965e-05,2]
[401800328,1768378417225,-1000.0,9.965e-05,2]
[401800329,1768378417587,-1000.0,9.965e-05,2]
[401800330,1768378417937,-1000.0,9.965e-05,2]
[401800331,1768378418332,-1000.0,9.965e-05,2]
[401800332,1768378418704,-1000.0,9.965e-05,2]
[401800333,1768378419056,-1000.0,9.965e-05,2]
[401800334,1768378419435,-1000.0,9.965e-05,2]
[401800335,1768378419769,-1000.0,9.965e-05,2]
[401800336,1768378420158,-1000.0,9.965e-05,2]
[401800337,1768378420529,-1000.0,9.965e-05,2]
[401800338,1768378420873,-1000.0,9.965e-05,2]
[401800339,1768378421245,-1000.0,9.965e-05,2]
[401800340,1768378421622,-1000.0,9.965e-05,2]
[401800341,1768378422074,-1000.0,9.965e-05,2]
[401800342,1768378422353,-1000.0,9.965e-05,2]
[401800343,1768378422388,-761.53856142,9.965e-05,2]
[401800344,1768378422724,-1000.0,9.965e-05,2]
[401800345,1768378423106,-1000.0,9.965e-05,2]
[401800346,1768378423470,-1000.0,9.965e-05,2]
[401800347,1768378423795,-1000.0,9.965e-05,2]
[401800348,1768378424187,-1000.0,9.965e-05,2]
[401800349,1768378425635,-1000.0,9.965e-05,2]
[401800350,1768378426024,-1000.0,9.965e-05,2]
[401800351,1768378426282,-196.9355846,9.965e-05,2]
[401800352,1768378426404,-1000.0,9.965e-05,2]
[401800353,1768378426714,-1000.0,9.965e-05,2]
[401800354,1768378427087,-1000.0,9.965e-05,2]
[401800355,1768378427408,-1000.0,9.965e-05,2]
[401800356,1768378427773,-177.52279,9.965e-05,2]
[401800357,1768378429887,-1000.0,9.965e-05,2]
[401800358,1768378430221,-1000.0,9.965e-05,2]
[401800359,1768378430961,-250.51298865,9.965e-05,2]
[401800360,1768378431573,-1000.0,9.965e-05,2]
[401800361,1768378432024,-1000.0,9.965e-05,2]
[401800362,1768378432277,-1000.0,9.965e-05,2]
[401800363,1768378432924,-545.5228273,9.965e-05,2]
[401800364,1768378433510,-1000.0,9.965e-05,2]
[401800365,1768378433828,-1000.0,9.965e-05,2]